bitfinex-derivatives/quotes_SOLF0:USTF0_20241230
["timestamp","ask_amount","ask_price","bid_price","bid_amount"]
[1735544426407,2.6125,191.76,191.7,3.06]
[1735544427514,2.6125,191.76,191.71,2.6131]
[1735544428112,2.6123,191.78,191.73,2.6129]
[1735544429108,2.6123,191.78,191.74,2.6127]
[1735544429314,2.612,191.8,191.75,3.06]
[1735544430208,2.6116,191.83,191.77,2.6123]
[1735544430417,2.6116,191.83,191.75,3.06]
[1735544430915,2.6117,191.82,191.75,3.06]
[1735544431320,13.17194689,191.86,191.79,2.612]
[1735544431620,3.06,191.91,191.8,3.06]
[1735544431917,13.17194689,191.87,191.8,3.06]
[1735544432518,2.6115,191.83,191.8,3.06]
[1735544436716,2.6116,191.82,191.8,3.06]
[1735544436916,13.17194689,191.84,191.8,3.06]
[1735544437321,2.6114,191.85,191.8,5.6719]
[1735544437824,13.17194689,191.87,191.8,3.06]
[1735544438019,13.17194689,191.87,191.82,2.6116]
[1735544439117,13.17194689,191.9,191.82,2.6116]
[1735544439318,13.17194689,191.93,191.81,1.5479]
[1735544439514,13.17194689,191.93,191.82,1.4936]
[1735544439718,2.6107,191.89,191.84,2.6114]
[1735544439913,13.17194689,191.93,191.85,3.08]
[1735544441026,13.17194689,191.9,191.83,3.08]
[1735544441223,2.6112,191.86,191.82,4.5736]
[1735544441429,13.17194689,191.9,191.82,4.5736]
[1735544441630,2.6115,191.83,191.82,4.5736]
[1735544441927,13.17194689,191.87,191.79,3.08]
[1735544442125,13.17194689,191.87,191.74,2.9642]
[1735544442326,2.612,191.8,191.75,3.08]
[1735544442925,2.612,191.8,191.74,2.9642]
[1735544443125,2.612,191.8,191.75,5.6925]
[1735544443518,13.17194689,191.87,191.75,2.6125]
[1735544443717,13.17194689,191.87,191.76,3.08]
[1735544443924,2.6114,191.84,191.76,3.08]
[1735544444126,13.17194689,191.87,191.76,3.08]
[1735544444528,13.17194689,191.87,191.75,2.6125]
[1735544444724,13.17194689,191.87,191.76,3.08]
[1735544445431,2.612,191.8,191.76,3.08]
[1735544445629,13.17194689,191.87,191.76,3.08]
[1735544446328,13.17194689,191.87,191.74,2.9642]
[1735544446528,13.17194689,191.87,191.76,3.08]
[1735544446925,13.17194689,191.84,191.75,3.08]
[1735544447126,2.6117,191.82,191.75,3.08]
[1735544447322,13.17194689,191.84,191.75,3.08]
[1735544447834,2.6122,191.78,191.75,3.08]
[1735544450631,2.6116,191.83,191.79,2.612]
[1735544451132,2.6112,191.85,191.81,2.6118]
[1735544453336,13.17194689,191.88,191.78,3.08]
[1735544453835,2.6112,191.85,191.78,3.08]
[1735544454026,13.17194689,191.88,191.78,3.08]
[1735544455130,16.25194689,191.88,191.78,3.08]
[1735544455336,2.612,191.8,191.78,3.08]
[1735544455635,2.612,191.8,191.76,5.6925]
[1735544455827,2.6119,191.8,191.76,5.6924]
[1735544458028,13.17194689,191.87,191.76,3.08]
[1735544458231,13.17194689,191.84,191.76,3.08]
[1735544458934,2.612,191.8,191.76,3.08]
[1735544459533,2.612,191.8,191.76,5.6924]
[1735544459737,2.612,191.8,191.76,2.6124]
[1735544460636,3.08,191.88,191.72,44.63597605]
[1735544460637,13.17194689,191.81,191.72,44.63597605]
[1735544461340,2.6125,191.76,191.72,47.24887605]
[1735544461536,13.17194689,191.81,191.72,44.63597605]
[1735544462138,13.17194689,191.81,191.71,3.08]
[1735544462343,13.17194689,191.81,191.71,5.6931]
[1735544463042,13.17194689,191.81,191.71,3.08]
[1735544463243,13.17194689,191.81,191.72,2.6129]
[1735544463443,13.17194689,191.81,191.73,3.08]
[1735544463645,3.08,191.83,191.73,3.08]
[1735544463841,13.17194689,191.82,191.73,5.6928]
[1735544464038,2.6119,191.81,191.73,3.08]
[1735544464545,2.6117,191.82,191.74,13.17194689]
[1735544464846,2.6117,191.82,191.77,2.6122]
[1735544465245,2.6118,191.81,191.77,2.6122]
[1735544467350,13.17194689,191.85,191.74,20.3400547]
[1735544467547,2.6117,191.82,191.78,2.6121]
[1735544467844,13.17194689,191.85,191.74,20.3400547]
[1735544468051,13.17194689,191.88,191.77,13.17194689]
[1735544468246,13.17194689,191.88,191.78,3.0599]
[1735544468554,2.6111,191.87,191.82,2.6115]
[1735544468854,13.17194689,191.88,191.82,5.7115]
[1735544469451,2.611,191.87,191.83,2.6115]
[1735544470055,13.17194689,191.91,191.82,3.1]
[1735544470254,2.6111,191.87,191.82,5.7116]
[1735544470957,2.6111,191.86,191.82,5.7116]
[1735544472758,13.17194689,191.91,191.82,3.1]
[1735544472957,13.17194689,191.91,191.83,2.6114]
[1735544472958,2.6109,191.88,191.83,2.6114]
[1735544474257,2.611,191.87,191.83,2.6114]
[1735544475255,2.6107,191.89,191.85,2.6111]
[1735544477061,13.17194689,191.94,191.85,2.6111]
[1735544478162,21.1916881,192.02,191.89,13.17194689]
[1735544478357,21.1916881,192.02,191.9,4.6054]
[1735544478657,21.1916881,192.02,191.9,6.2129]
[1735544478861,2.6095,191.98,191.94,2.6099]
[1735544479161,21.1916881,192.02,191.95,3.1]
[1735544479367,21.1916881,192.02,191.94,3.1]
[1735544479560,13.17194689,192.04,191.94,3.1]
[1735544480464,2.6094,191.99,191.94,5.71]
[1735544480862,13.17194689,192.04,191.94,3.1]
[1735544481164,2.6096,191.97,191.9,3.1129]
[1735544481365,13.17194689,192.01,191.91,3.1]
[1735544481767,13.17194689,192.01,191.9,3.1129]
[1735544481962,13.17194689,192.01,191.91,3.1]
[1735544482667,2.6096,191.98,191.93,2.6101]
[1735544483068,2.61,191.94,191.91,3.1]
[1735544483263,13.17194689,192.01,191.91,3.1]
[1735544484261,2.6097,191.96,191.91,3.1]
[1735544485469,2.6099,191.95,191.91,3.1]
[1735544485779,13.17194689,192.01,191.91,3.1]
[1735544486662,2.6099,191.95,191.91,5.7104]
[1735544489176,2.6099,191.95,191.91,2.6104]
[1735544489473,13.17194689,191.98,191.9,3.1]
[1735544489668,13.17194689,191.98,191.89,3.1]
[1735544489968,13.17194689,191.95,191.84,3.0905]
[1735544490172,13.17194689,191.95,191.85,3.1]
[1735544491171,13.17194689,191.95,191.86,3.1]
[1735544491373,13.17194689,191.98,191.86,3.1]
[1735544493575,2.6103,191.92,191.88,2.6108]
[1735544493974,13.17194689,191.98,191.86,3.1]
[1735544494174,2.6104,191.91,191.86,3.1]
[1735544494775,2.6106,191.9,191.87,3.1]
[1735544494975,13.17194689,191.95,191.86,3.1]
[1735544496177,2.6107,191.9,191.86,3.1]
[1735544496678,13.17194689,191.95,191.86,3.1]
[1735544496875,2.6107,191.89,191.86,3.1]
[1735544497075,13.17194689,191.95,191.86,3.1]
[1735544497275,2.6109,191.88,191.84,3.0905]
[1735544497476,13.17194689,191.95,191.84,6.1305]
[1735544498479,2.6103,191.92,191.84,8.7418]
[1735544498675,13.17194689,191.95,191.84,8.7418]
[1735544499379,13.17194689,191.95,191.85,3.04]
[1735544499678,13.17194689,191.95,191.86,2.611]
[1735544499878,13.17194689,191.98,191.85,3.04]
[1735544500079,2.6104,191.92,191.88,2.6108]
[1735544500278,2.6104,191.92,191.88,5.6508]
[1735544502081,13.17194689,191.98,191.88,3.04]
[1735544503184,2.6098,191.96,191.91,2.6103]
[1735544503880,13.17194689,191.98,191.91,3.04]
[1735544504077,13.17194689,191.98,191.86,13.17194689]
[1735544504078,13.17194689,191.98,191.88,2.6107]
[1735544504376,13.17194689,191.98,191.89,3.04]
[1735544504771,2.6104,191.91,191.86,5.651]
[1735544504973,13.17194689,191.98,191.86,5.651]
[1735544505178,13.17194689,191.95,191.86,5.651]
[1735544505879,2.6102,191.93,191.86,5.651]
[1735544506083,13.17194689,191.95,191.87,2.6109]
[1735544506379,2.6104,191.92,191.87,2.6109]
[1735544507585,2.6105,191.91,191.87,2.6109]
[1735544512388,2.6105,191.91,191.87,10.97080933]
[1735544512788,2.6105,191.91,191.87,14.01080933]
[1735544512985,8.35990933,191.94,191.87,11.39990933]
[1735544513190,2.6104,191.92,191.88,2.6108]
[1735544513391,2.6104,191.92,191.89,8.35990933]
[1735544515888,2.6104,191.91,191.89,8.35990933]
[1735544516683,3.04,192.0,191.84,3.0905]
[1735544516886,8.35990933,191.91,191.84,1.5087]
[1735544517491,2.611,191.87,191.84,1.5087]
[1735544518295,13.06787788,191.93,191.84,4.12]
[1735544519191,2.6105,191.91,191.84,4.12]
[1735544519495,13.06787788,191.93,191.84,4.12]
[1735544519996,2.6108,191.89,191.84,4.12]
[1735544521197,13.06787788,191.93,191.84,4.12]
[1735544521396,3.04,191.95,191.84,1.5087]
[1735544521988,13.06787788,191.96,191.84,1.5087]
[1735544521989,2.6105,191.91,191.84,1.5087]
[1735544522898,2.6105,191.91,191.86,2.6109]
[1735544523094,13.06787788,191.96,191.86,2.6109]
[1735544523294,2.6106,191.9,191.86,2.6109]
[1735544528603,13.06787788,191.96,191.86,2.6109]
[1735544528902,2.6105,191.9,191.86,2.6109]
[1735544530097,39.01989797,191.99,191.85,3.04]
[1735544530396,13.06787788,191.98,191.86,13.06787788]
[1735544531004,2.6098,191.95,191.89,2.6104]
[1735544531203,2.6098,191.95,191.9,3.04]
[1735544532406,2.6098,191.95,191.91,2.6102]
[1735544534106,13.06787788,191.98,191.9,3.04]
[1735544534304,2.6096,191.96,191.92,2.6101]
[1735544536103,2.6095,191.97,191.92,2.6101]
[1735544536407,39.01989797,191.99,191.92,2.6101]
[1735544537309,2.6098,191.95,191.92,2.6101]
[1735544538704,2.6098,191.95,191.91,1.5272]
[1735544538905,2.6098,191.95,191.91,4.1375]
[1735544541608,2.6099,191.94,191.91,4.1375]
[1735544541809,8.35754721,191.95,191.9,3.04]
[1735544542204,2.61,191.94,191.9,3.04]
[1735544542410,8.35754721,191.95,191.9,3.04]
[1735544543610,2.6102,191.92,191.9,3.04]
[1735544544406,2.6102,191.92,191.88,14.00824721]
[1735544544912,8.35754721,191.93,191.88,3.04]
[1735544546809,2.66744289,192.05,191.88,11.39754721]
[1735544547012,8.35754721,192.03,191.95,8.35754721]
[1735544547211,8.35754721,192.03,191.97,8.35754721]
[1735544548412,2.6089,192.02,191.97,8.35754721]
[1735544548615,8.35754721,192.03,191.97,8.35754721]
[1735544549716,2.609,192.0,191.97,8.35754721]
[1735544551217,11.0249901,192.05,191.97,8.35754721]
[1735544551515,2.6086,192.03,191.99,10.96664721]
[1735544552916,2.6086,192.03,191.99,8.35754721]
[1735544553117,2.6084,192.04,191.99,8.35754721]
[1735544553315,8.35754721,192.09,192.01,8.35754721]
[1735544553820,2.6082,192.06,192.01,8.35754721]
[1735544554319,2.6082,192.06,192.01,10.96624721]
[1735544555414,2.6082,192.06,192.03,8.35754721]
[1735544556317,2.6082,192.06,192.01,4.0928]
[1735544556318,8.35754721,192.08,192.01,9.84154721]
[1735544556710,8.35754721,192.08,192.01,8.35754721]
[1735544557914,2.6086,192.03,192.01,8.35754721]
[1735544558818,8.35754721,192.1,192.01,8.35754721]
[1735544559519,8.35754721,192.1,192.0,5.6489]
[1735544559710,8.35754721,192.1,192.02,8.35754721]
[1735544559914,2.6083,192.06,192.02,8.35754721]
[1735544560318,8.35754721,192.1,192.02,8.35754721]
[1735544560619,2.6081,192.07,192.02,10.96614721]
[1735544560814,8.35754721,192.1,192.02,8.35754721]
[1735544561718,2.6081,192.07,192.02,8.35754721]
[1735544562314,2.66589598,192.15,192.0,3.04]
[1735544562315,2.66589598,192.15,192.06,8.35754721]
[1735544562517,2.66589598,192.15,191.99,1.4963]
[1735544562518,2.66589598,192.15,192.12,8.35754721]
[1735544563018,2.6067,192.17,192.12,8.35754721]
[1735544563223,8.35754721,192.19,192.12,8.35754721]
[1735544564526,2.6069,192.16,192.12,8.35754721]
[1735544566721,2.6071,192.14,192.12,8.35754721]
[1735544567519,2.6069,192.16,192.12,8.35754721]
[1735544567827,8.35754721,192.2,192.11,1.5781]
[1735544568024,2.6071,192.14,192.12,8.35754721]
[1735544568714,2.6072,192.13,192.12,8.35754721]
[1735544571825,2.607,192.15,192.12,8.35754721]
[1735544574924,2.6071,192.15,192.12,8.35754721]
[1735544575622,2.6072,192.14,192.12,8.35754721]
[1735544575928,2.6072,192.14,192.12,11.37754721]
[1735544576932,2.6072,192.14,192.12,8.35754721]
[1735544577227,2.6072,192.14,192.12,11.37754721]
[1735544577528,2.6073,192.13,192.11,1.5781]
[1735544577729,2.6073,192.13,192.11,4.5981]
[1735544578523,8.35754721,192.14,192.08,3.02]
[1735544578733,8.35754721,192.12,192.04,8.35754721]
[1735544579128,8.35754721,192.12,192.05,3.02]
[1735544580533,2.6081,192.08,192.05,3.02]
[1735544582833,2.6077,192.1,192.06,10.96584721]
[1735544583039,8.35754721,192.16,192.08,8.35754721]
[1735544583339,8.35754721,192.16,192.1,8.35754721]
[1735544583536,8.35754721,192.16,192.1,11.37754721]
[1735544583930,8.35754721,192.18,192.1,11.37754721]
[1735544584129,2.6071,192.15,192.12,8.35754721]
[1735544587041,2.6073,192.14,192.11,3.0535]
[1735544587242,2.6073,192.14,192.11,11.41104721]
[1735544588041,2.6071,192.15,192.12,3.08]
[1735544593044,2.6072,192.15,192.12,3.08]
[1735544593550,8.35754721,192.18,192.12,3.08]
[1735544593749,8.35754721,192.18,192.12,5.6874]
[1735544594143,8.35754721,192.2,192.13,8.35754721]
[1735544594646,2.6068,192.18,192.15,8.35754721]
[1735544595747,2.6065,192.19,192.15,10.96454721]
[1735544596248,8.35754721,192.22,192.15,8.35754721]
[1735544597547,2.6064,192.2,192.16,2.6069]
[1735544597752,2.6064,192.2,192.17,3.08]
[1735544599353,8.35754721,192.22,192.17,3.08]
[1735544599553,8.35754721,192.2,192.17,3.08]
[1735544600054,8.35754721,192.2,192.14,3.08]
[1735544600653,2.6069,192.17,192.14,3.08]
[1735544601553,2.607,192.16,192.13,8.35754721]
[1735544601758,8.35754721,192.18,192.13,11.43754721]
[1735544602155,2.607,192.16,192.13,11.43754721]
[1735544602958,2.607,192.16,192.13,3.08]
[1735544603357,8.35754721,192.18,192.12,3.08]
[1735544603955,2.6072,192.14,192.12,3.08]
[1735544604163,8.35754721,192.16,192.11,6.1335]
[1735544604454,8.35754721,192.14,192.08,3.08]
[1735544604758,2.6077,192.1,192.08,3.08]
[1735544604956,8.35754721,192.14,192.08,3.08]
[1735544606059,2.6075,192.12,192.08,3.08]
[1735544613664,2.6076,192.11,192.08,3.08]
[1735544618067,8.35754721,192.14,192.08,3.08]
[1735544618267,8.35754721,192.14,192.07,11.39754721]
[1735544618666,8.35754721,192.12,192.07,3.04]
[1735544619565,2.608,192.09,192.07,3.04]
[1735544619870,2.608,192.09,192.05,16.99414721]
[1735544620767,2.6081,192.08,192.05,14.38574721]
[1735544621871,2.6082,192.07,192.05,14.38574721]
[1735544622565,2.6082,192.07,192.05,11.39754721]
[1735544622970,2.6082,192.07,192.05,3.04]
[1735544623263,2.6082,192.07,192.05,11.39754721]
[1735544623866,2.6082,192.07,192.05,8.35754721]
[1735544624964,8.35754721,192.12,192.05,8.35754721]
[1735544625170,2.6083,192.06,192.05,8.35754721]
[1735544625472,2.6083,192.06,192.04,3.04]
[1735544626567,2.6083,192.06,192.05,8.35754721]
[1735544626767,2.6082,192.07,192.05,8.35754721]
[1735544629464,8.35754721,192.1,192.03,8.35754721]
[1735544630471,2.6085,192.05,192.03,8.35754721]
[1735544631270,8.35754721,192.06,191.98,3.04]
[1735544631473,8.35754721,192.06,191.99,8.35754721]
[1735544631969,2.6088,192.03,191.99,10.96674721]
[1735544632570,2.6088,192.03,191.99,2.6092]
[1735544632771,2.6088,192.03,191.99,10.96674721]
[1735544634475,8.35754721,192.07,191.99,10.96674721]
[1735544635477,2.6088,192.03,191.99,10.96674721]
[1735544635976,8.35754721,192.07,191.99,10.96674721]
[1735544637173,38.99045253,192.13,192.01,8.35754721]
[1735544637369,8.35754721,192.09,192.03,8.35754721]
[1735544638477,2.6083,192.07,192.03,10.96624721]
[1735544640679,2.6082,192.08,192.03,10.96624721]
[1735544640881,8.35754721,192.09,192.03,10.96624721]
[1735544641071,8.35754721,192.09,192.03,14.00624721]
[1735544641379,8.35754721,192.09,192.03,11.39754721]
[1735544641977,2.6083,192.06,192.03,11.39754721]
[1735544642375,2.6086,192.04,191.96,28.67243125]
[1735544642674,8.35754721,192.07,192.01,8.35754721]
[1735544644370,8.35754721,192.09,192.01,8.35754721]
[1735544644572,8.35754721,192.09,192.02,3.04]
[1735544644976,2.6083,192.06,192.02,5.6488]
[1735544645576,8.35754721,192.07,192.02,3.04]
[1735544646776,2.6087,192.03,192.02,3.04]
[1735544647782,2.6087,192.03,191.99,8.35754721]
[1735544648182,8.35754721,192.07,191.99,8.35754721]
[1735544648383,38.99045253,192.13,192.01,8.35754721]
[1735544648584,8.35754721,192.08,192.01,8.35754721]
[1735544649889,8.35754721,192.08,192.0,5.6291]
[1735544650082,8.35754721,192.08,192.0,13.98664721]
[1735544650983,2.6086,192.04,192.0,13.98664721]
[1735544651485,2.6086,192.04,192.0,11.37754721]
[1735544652883,8.35754721,192.08,192.0,11.37754721]
[1735544653084,2.6087,192.03,192.0,3.02]
[1735544655085,8.35754721,192.06,192.0,3.02]
[1735544655390,8.35754721,192.04,191.97,3.02]
[1735544655786,2.6094,191.98,191.96,8.35754721]
[1735544656986,8.35754721,192.02,191.96,8.35754721]
[1735544657587,3.02,192.08,191.96,8.35754721]
[1735544657588,2.6093,191.99,191.96,8.35754721]
[1735544658083,3.02,192.08,191.96,8.35754721]
[1735544658293,2.6089,192.02,191.98,8.35754721]
[1735544658885,8.35754721,192.05,191.98,8.35754721]
[1735544658886,2.609,192.01,191.98,8.35754721]
[1735544659793,2.609,192.01,191.97,2.6095]
[1735544660094,2.6092,192.0,191.96,8.35754721]
[1735544660483,8.35754721,192.03,191.96,8.35754721]
[1735544660895,8.35754721,192.05,191.98,8.35754721]
[1735544661187,2.6087,192.03,191.99,3.02]
[1735544662589,2.6087,192.03,192.0,2.6091]
[1735544663789,2.6087,192.03,191.99,5.6292]
[1735544664985,8.35754721,192.05,191.99,3.02]
[1735544665189,8.35754721,192.05,192.0,2.609]
[1735544665685,8.35754721,192.05,191.99,5.6291]
[1735544665686,2.6086,192.03,191.99,5.6291]
[1735544666286,8.35754721,192.05,191.98,8.35754721]
[1735544666493,8.35754721,192.05,191.99,3.02]
[1735544666793,2.6086,192.04,191.99,3.02]
[1735544666994,8.35754721,192.05,191.99,3.02]
[1735544668193,2.6087,192.03,191.99,3.02]
[1735544668893,2.6087,192.03,191.99,5.6291]
[1735544669289,2.6087,192.03,191.99,3.02]
[1735544670301,2.6087,192.03,191.99,5.6292]
[1735544671500,2.6085,192.04,192.0,2.609]
[1735544673403,8.35754721,192.05,191.99,3.02]
[1735544673604,2.6087,192.03,191.99,5.6292]
[1735544679308,2.6087,192.03,191.99,2.6092]
[1735544679505,2.609,192.01,191.98,10.96694721]
[1735544681107,2.609,192.01,191.98,8.35754721]
[1735544685313,2.609,192.01,191.98,10.96684721]
[1735544687216,2.609,192.01,191.98,8.35754721]
[1735544687411,2.609,192.01,191.97,5.6295]
[1735544691117,2.609,192.01,191.97,3.02]
[1735544691312,2.609,192.01,191.98,2.6093]
[1735544692413,60.18214063,192.13,192.0,8.35754721]
[1735544692618,8.35754721,192.08,192.0,8.35754721]
[1735544693516,2.6085,192.05,192.01,2.6089]
[1735544693720,8.35754721,192.06,191.97,3.02]
[1735544694019,8.35754721,192.04,191.97,3.02]
[1735544695011,2.6091,192.01,191.97,5.6294]
[1735544695615,2.6091,192.0,191.97,5.6294]
[1735544696016,8.35754721,192.04,191.97,5.6294]
[1735544697018,2.6088,192.02,191.98,2.6093]
[1735544697913,2.6086,192.04,192.0,10.96664721]
[1735544698118,2.6086,192.04,192.0,8.35754721]
[1735544698420,8.35754721,192.06,192.0,8.35754721]
[1735544698618,2.6085,192.05,192.01,2.6089]
[1735544699722,2.6085,192.04,192.01,2.6089]
[1735544700224,8.35754721,192.06,192.0,8.35754721]
[1735544700425,2.6084,192.05,192.02,2.6088]
[1735544702015,2.6084,192.05,192.0,8.35754721]
[1735544702924,2.6084,192.05,192.01,2.6088]
[1735544705725,38.99045253,192.13,192.02,11.37754721]
[1735544705925,8.35754721,192.11,192.04,8.35754721]
[1735544706131,47.34799974,192.13,192.06,8.35754721]
[1735544706328,49.95529974,192.13,192.08,2.6079]
[1735544706524,10.96484721,192.13,192.08,3.02]
[1735544706925,8.35754721,192.13,192.08,3.02]
[1735544707338,8.35754721,192.11,192.08,3.02]
[1735544708231,2.6077,192.1,192.08,3.02]
[1735544708732,2.6076,192.12,192.08,3.02]
[1735544709230,8.35754721,192.13,192.08,3.02]
[1735544709637,8.35754721,192.11,192.08,3.02]
[1735544710527,2.6079,192.09,192.08,3.02]
[1735544710730,8.35754721,192.11,192.08,3.02]
[1735544710929,2.66520216,192.17,192.08,3.02]
[1735544710930,8.35754721,192.13,192.08,3.02]
[1735544711129,2.6076,192.12,192.08,5.628]
[1735544711528,2.6076,192.12,192.08,3.02]
[1735544712233,2.6076,192.12,192.08,5.628]
[1735544713126,2.6073,192.14,192.1,2.6077]
[1735544713923,2.6073,192.14,192.09,2.6078]
[1735544714932,2.6073,192.13,192.09,2.6078]
[1735544716528,2.6073,192.13,192.08,11.37754721]
[1735544716729,8.35754721,192.13,192.08,3.02]
[1735544717330,2.6077,192.11,192.08,3.02]
[1735544717835,8.35754721,192.15,192.08,11.37754721]
[1735544718035,2.66520216,192.17,192.1,8.35754721]
[1735544718235,2.66520216,192.17,192.12,8.35754721]
[1735544718432,2.6068,192.17,192.13,3.02]
[1735544718634,47.33610304,192.19,192.13,3.02]
[1735544718635,38.97855583,192.19,192.13,3.02]
[1735544718830,8.35754721,192.21,192.14,8.35754721]
[1735544719132,2.6065,192.2,192.15,2.6069]
[1735544719334,8.35754721,192.21,192.14,11.32264721]
[1735544720034,8.35754721,192.19,192.14,2.9651]
[1735544720432,2.6068,192.17,192.14,2.9651]
[1735544720633,2.6068,192.17,192.14,11.32264721]
[1735544721437,2.6065,192.19,192.14,13.92984721]
[1735544721937,8.35754721,192.21,192.14,11.32264721]
[1735544723533,2.6068,192.18,192.14,11.32264721]
[1735544724239,38.96136208,192.29,192.16,8.35754721]
[1735544724535,2.6061,192.22,192.18,8.35754721]
[1735544725141,8.35754721,192.25,192.18,8.35754721]
[1735544725339,2.6063,192.21,192.18,8.35754721]
[1735544726041,2.6061,192.22,192.18,11.35754721]
[1735544726543,2.6061,192.22,192.18,13.96414721]
[1735544727442,8.35754721,192.24,192.18,13.96414721]
[1735544727443,8.35754721,192.24,192.18,11.35754721]
[1735544727643,2.6064,192.2,192.18,3.0]
[1735544729144,2.6065,192.19,192.18,3.0]
[1735544729341,8.35754721,192.24,192.18,3.0]
[1735544729845,2.6061,192.23,192.18,3.0]
[1735544730045,8.35754721,192.24,192.18,3.0]
[1735544730448,8.35754721,192.24,192.18,11.35754721]
[1735544731444,2.6062,192.22,192.18,11.35754721]
[1735544731841,8.35754721,192.24,192.18,11.35754721]
[1735544732146,2.6062,192.21,192.18,11.35754721]
[1735544732546,2.6061,192.22,192.18,11.35754721]
[1735544733445,2.606,192.23,192.18,3.0]
[1735544733645,2.606,192.23,192.19,8.35754721]
[1735544734539,2.606,192.23,192.19,10.96394721]
[1735544735343,8.35754721,192.26,192.19,10.96394721]
[1735544735549,2.6058,192.24,192.21,8.35754721]
[1735544736647,8.35754721,192.28,192.21,10.96364721]
[1735544736845,8.35754721,192.28,192.21,8.35754721]
[1735544737249,2.6058,192.25,192.21,8.35754721]
[1735544737443,2.6058,192.25,192.21,11.40964721]
[1735544737839,8.35754721,192.28,192.21,11.40964721]
[1735544737840,2.6058,192.24,192.21,11.40964721]
[1735544738244,2.6058,192.24,192.21,14.01584721]
[1735544738745,2.6056,192.26,192.21,14.01584721]
[1735544739350,8.35754721,192.28,192.21,14.01584721]
[1735544739546,2.6057,192.25,192.21,14.01584721]
[1735544741445,8.35754721,192.3,192.23,10.96354721]
[1735544741653,8.35754721,192.3,192.23,13.96354721]
[1735544741845,2.6054,192.28,192.23,13.96354721]
[1735544742155,8.35754721,192.3,192.23,13.96354721]
[1735544742849,2.6055,192.27,192.23,11.35754721]
[1735544743050,8.35754721,192.3,192.23,11.35754721]
[1735544744148,2.6057,192.26,192.23,11.35754721]
[1735544748648,8.35754721,192.26,192.21,3.0521]
[1735544748950,8.35754721,192.26,192.21,1.5104]
[1735544749151,2.6059,192.24,192.21,1.5104]
[1735544749354,8.35754721,192.28,192.21,9.86794721]
[1735544750543,2.6056,192.26,192.22,2.606]
[1735544751451,2.6059,192.24,192.2,2.6064]
[1735544751652,8.35754721,192.28,192.2,10.96394721]
[1735544752155,8.35754721,192.26,192.2,10.96394721]
[1735544753250,2.606,192.23,192.2,8.35754721]
[1735544753949,8.35754721,192.25,192.17,1.4702]
[1735544754154,8.35754721,192.25,192.18,11.35754721]
[1735544754555,8.35754721,192.23,192.18,3.0]
[1735544755043,8.35754721,192.21,192.17,1.4702]
[1735544755248,2.6069,192.17,192.15,50.61049897]
[1735544755451,8.35754721,192.17,192.12,30.22403125]
[1735544755648,8.35754721,192.15,192.12,28.67243125]
[1735544755854,2.6075,192.12,192.11,28.67243125]
[1735544757051,2.6076,192.11,192.08,1.51]
[1735544757247,8.35754721,192.15,192.08,1.51]
[1735544757858,2.6075,192.13,192.08,1.51]
[1735544758254,8.35754721,192.15,192.08,1.51]
[1735544758861,2.6073,192.13,192.08,1.51]
[1735544759255,3.0,192.23,192.09,8.35754721]
[1735544759455,2.6071,192.15,192.09,8.35754721]
[1735544759659,2.6071,192.15,192.11,8.35754721]
[1735544762367,2.6072,192.14,192.11,8.35754721]
[1735544762666,8.35754721,192.18,192.11,8.35754721]
[1735544763168,2.6073,192.14,192.11,8.35754721]
[1735544763962,2.6069,192.16,192.11,8.35754721]
[1735544764467,8.35754721,192.18,192.11,8.35754721]
[1735544764666,2.607,192.15,192.11,8.35754721]
[1735544765370,2.6067,192.18,192.13,8.35754721]
[1735544765667,8.35754721,192.23,192.15,8.35754721]
[1735544766469,2.6062,192.21,192.16,2.6069]
[1735544767469,2.6061,192.22,192.17,10.96424721]
[1735544767670,8.35754721,192.23,192.17,13.96424721]
[1735544768066,2.6061,192.22,192.17,13.96424721]
[1735544768271,8.35754721,192.25,192.18,2.6066]